{"text_format":"1","workbook":"xlsx","n_sheets":1,"sheets":["Pressupost Projecte Ba"],"not_rendered":{"charts":0,"images":2,"macros":1,"external_links":0,"defined_names":6,"comments":1,"pivot_tables":0},"unopened":[],"bounds":{"document_bytes":16777216,"sheet_cells":100000,"rows_first":2000,"rows_last":500,"rows_between":2000,"halvings":0,"cell_chars":16384,"cell_head_chars":4096},"cells_cut":0,"cells_raw":0,"read":"whole","date_system":"1900"}

{"sheet":"Pressupost Projecte Ba","index":0,"n_rows":159,"n_cols":6,"rows_kept":159,"cut":false,"hidden":false,"merged":[[2,1,3,5],[138,2,138,3]]}
[null,null,null,null,null,"Documento básico 3"]
[null,null,null,null,null,"Ámbito temático \"B\": Intercooperación"]
["Subvencions de l'Ajuntament de Barcelona per a","Modalidad \"a\": Intercooperación de 2º y mayor nivel: Proyectos promovidos per entidades de la Economía Social y Solidaria o de las finanzas éticas de segundo nivel y superior, que contribuyan al despliegue de la Estrategia 2030 ESS  de Barcelona, y tengan por destinatarias a sus entidades socias."]
["la promoció i reforç de l'economia social "]
["i solidària 2020",null,null,null,null,"Se deben rellenar las celdas en blanco, y añadir filas en caso que sea necesario."]
[null,null,null,null,null,"Consultar anotaciones a pie de página antes de completar los datos."]
[null,null,null,null,null," "]
["DADES BÀSIQUES"]
["Nombre de la persona jurídica/física",null,null,null,null,"  "]
["NIF de la persona jurídica/física"]
["Denominación del proyecto"]
["Importe total del proyecto"]
["Importe imputable a la subvención municipal"]
["% de l’Importe solicitado a la subvención municipal a cambiar en REC (Recurs Econòmic Ciutadà) "]
["Importe de l'aportació / Cofinanciación de la entidad",{"$f":"B12-B13","v":0}]
["% de l'Importe solicitado respecto al total del proyecto",{"$f":"B13/B12","v":{"$error":"#DIV/0!"}}]
["Data inici del projecte subvencionat (dd/mm/aaaa)"]
["Data fi del projecte subvencionat (dd/mm/aaaa)"]
[]
["PREVISIÓN DE GASTOS DEL PROYECTO SUBVENCIONABLE"]
[]
["Partidas","Importe total del proyecto","Importe imputable a la subvención municipal","Importe de l'aportació / Cofinanciación de la entidad"]
["D1.  - Retribuciones y seguridad social (régimen general o régimen de autónomos) del personal propio vinculado/a al proyecto",{"$f":"SUM(DespesesProjecte[[#This Row],[Importe imputable a la subvención municipal]],DespesesProjecte[[#This Row],[Importe de l''aportació / Cofinanciación de la entidad]])","v":0},{"$f":"SUM(C24:C28)","v":0},{"$f":"SUM(D24:D28)","v":0}]
[]
[]
[]
[]
[]
["TOTAL DE GASTOS DE PERSONAL (Máx 25% del importe imputable a la subvención municipal)",{"$f":"B23","v":0},{"$f":"C23","v":0},{"$f":"D23","v":0}]
["D2.  Trabajos realizados por profesionales y empresas externas directamente vinculadas al acompañamiento de procesos de la entidad  y con sus asociadas.",{"$f":"SUM(DespesesProjecte[[#This Row],[Importe imputable a la subvención municipal]],DespesesProjecte[[#This Row],[Importe de l''aportació / Cofinanciación de la entidad]])","v":0},{"$f":"SUM(C31:C35)","v":0},{"$f":"SUM(D31:D35)","v":0}]
[]
[]
[]
[]
[]
["D3.  Alquiler de bienes inmuebles directamente vinculados al proyecto subvencionable.",{"$f":"SUM(DespesesProjecte[[#This Row],[Importe imputable a la subvención municipal]],DespesesProjecte[[#This Row],[Importe de l''aportació / Cofinanciación de la entidad]])","v":0},{"$f":"SUM(C37:C41)","v":0},{"$f":"SUM(D37:D41)","v":0}]
[]
[]
[]
[]
[]
["D4.  Adquisición de materiales y bienes consumibles íntegramente imputables al proyecto subvencionable",{"$f":"SUM(DespesesProjecte[[#This Row],[Importe imputable a la subvención municipal]],DespesesProjecte[[#This Row],[Importe de l''aportació / Cofinanciación de la entidad]])","v":0},{"$f":"SUM(C43:C47)","v":0},{"$f":"SUM(D43:D47)","v":0}]
[]
[]
[]
[]
[]
["D5.  Publicidad y propaganda de las actividades directamente vinculadas al proyecto subvencionable",{"$f":"SUM(DespesesProjecte[[#This Row],[Importe imputable a la subvención municipal]],DespesesProjecte[[#This Row],[Importe de l''aportació / Cofinanciación de la entidad]])","v":0},{"$f":"SUM(C49:C53)","v":0},{"$f":"SUM(D49:D53)","v":0}]
[]
[]
[]
[]
[]
["D6.  Viajes y desplazamientos imputables a las actividades del proyecto subvencionable.",{"$f":"SUM(DespesesProjecte[[#This Row],[Importe imputable a la subvención municipal]],DespesesProjecte[[#This Row],[Importe de l''aportació / Cofinanciación de la entidad]])","v":0},{"$f":"SUM(C55:C59)","v":0},{"$f":"SUM(D55:D59)","v":0}]
[]
[]
[]
[]
[]
["D7.  Gastos del informe de auditoría",{"$f":"SUM(DespesesProjecte[[#This Row],[Importe imputable a la subvención municipal]],DespesesProjecte[[#This Row],[Importe de l''aportació / Cofinanciación de la entidad]])","v":0},{"$f":"SUM(C61:C65)","v":0},{"$f":"SUM(D61:D65)","v":0}]
[]
[]
[]
[]
[]
["D8.  Otros gastos que de manera justificada puedan imputarse directamente al proyecto  subvencionable",{"$f":"SUM(DespesesProjecte[[#This Row],[Importe imputable a la subvención municipal]],DespesesProjecte[[#This Row],[Importe de l''aportació / Cofinanciación de la entidad]])","v":0},{"$f":"SUM(C67:C71)","v":0},{"$f":"SUM(D67:D71)","v":0}]
[]
[]
[]
[]
[]
["TOTAL DE OTROS GASTOS DIRECTOS",{"$f":"SUM(B30,B36,B42,B48,B54,B60,B66)","v":0},{"$f":"SUM(C30,C36,C42,C48,C54,C60,C66)","v":0},{"$f":"SUM(D30,D36,D42,D48,D54,D60,D66)","v":0}]
["TOTAL GASTOS DIRECTOS (los que se identifican directamente con el proyecto subvencionable)",{"$f":"SUM(B29,B72)","v":0},{"$f":"SUM(C29,C72)","v":0},{"$f":"SUM(D29,D72)","v":0}]
["I1. Personal de soporte al proyecto (nóminas y seguridad social)",{"$f":"SUM(DespesesProjecte[[#This Row],[Importe imputable a la subvención municipal]],DespesesProjecte[[#This Row],[Importe de l''aportació / Cofinanciación de la entidad]])","v":0},{"$f":"SUM(C75:C79)","v":0},{"$f":"SUM(D75:D79)","v":0}]
[]
[]
[]
[]
[]
["I2.  Seguros",{"$f":"SUM(DespesesProjecte[[#This Row],[Importe imputable a la subvención municipal]],DespesesProjecte[[#This Row],[Importe de l''aportació / Cofinanciación de la entidad]])","v":0},{"$f":"SUM(C81:C85)","v":0},{"$f":"SUM(D81:D85)","v":0}]
[]
[]
[]
[]
[]
["I3.  Amortitzación",{"$f":"SUM(DespesesProjecte[[#This Row],[Importe imputable a la subvención municipal]],DespesesProjecte[[#This Row],[Importe de l''aportació / Cofinanciación de la entidad]])","v":0},{"$f":"SUM(C87:C91)","v":0},{"$f":"SUM(D87:D91)","v":0}]
[]
[]
[]
[]
[]
["I4.  Alquiler de bienes inmuebles",{"$f":"SUM(DespesesProjecte[[#This Row],[Importe imputable a la subvención municipal]],DespesesProjecte[[#This Row],[Importe de l''aportació / Cofinanciación de la entidad]])","v":0},{"$f":"SUM(C93:C97)","v":0},{"$f":"SUM(D93:D97)","v":0}]
[]
[]
[]
[]
[]
["I5.  Adquisición de materiales y bienes consumibles parcialmente imputables al proyecto subvencionable",{"$f":"SUM(DespesesProjecte[[#This Row],[Importe imputable a la subvención municipal]],DespesesProjecte[[#This Row],[Importe de l''aportació / Cofinanciación de la entidad]])","v":0},{"$f":"SUM(C99:C103)","v":0},{"$f":"SUM(D99:D103)","v":0}]
[]
[]
[]
[]
[]
["I6.  Mantenimento de edificios y/o instalaciones.",{"$f":"SUM(DespesesProjecte[[#This Row],[Importe imputable a la subvención municipal]],DespesesProjecte[[#This Row],[Importe de l''aportació / Cofinanciación de la entidad]])","v":0},{"$f":"SUM(C105:C109)","v":0},{"$f":"SUM(D105:D109)","v":0}]
[]
[]
[]
[]
[]
["I7.  Comunicacions (telèfon, correus, connexió a internet)",{"$f":"SUM(DespesesProjecte[[#This Row],[Importe imputable a la subvención municipal]],DespesesProjecte[[#This Row],[Importe de l''aportació / Cofinanciación de la entidad]])","v":0},{"$f":"SUM(C111:C115)","v":0},{"$f":"SUM(D111:D115)","v":0}]
[]
[]
[]
[]
[]
["I8.  Gastos financieros",{"$f":"SUM(DespesesProjecte[[#This Row],[Importe imputable a la subvención municipal]],DespesesProjecte[[#This Row],[Importe de l''aportació / Cofinanciación de la entidad]])","v":0},{"$f":"SUM(C117:C121)","v":0},{"$f":"SUM(D117:D121)","v":0}]
[]
[]
[]
[]
[]
["I9.  Suministros",{"$f":"SUM(DespesesProjecte[[#This Row],[Importe imputable a la subvención municipal]],DespesesProjecte[[#This Row],[Importe de l''aportació / Cofinanciación de la entidad]])","v":0},{"$f":"SUM(C123:C127)","v":0},{"$f":"SUM(D123:D127)","v":0}]
[]
[]
[]
[]
[]
["I10.  Treball realitzat per altres empreses, parcialment imputables al projecte subvencionable (neteja, seguretat...)",{"$f":"SUM(DespesesProjecte[[#This Row],[Importe imputable a la subvención municipal]],DespesesProjecte[[#This Row],[Importe de l''aportació / Cofinanciación de la entidad]])","v":0},{"$f":"SUM(C129:C133)","v":0},{"$f":"SUM(D129:D133)","v":0}]
[]
[]
[]
[]
[]
["TOTAL GASTOS INDIRECTOS (se podrán asignar al proyecto subvencionable haciendo uso de un porcentaje de asignación) - Máximo 10 % del importe imputable a la subvención municipal",{"$f":"SUM(B74,B80,B86,B92,B98,B104,B110,B116,B122,B128)","v":0},{"$f":"SUM(C74,C80,C86,C92,C98,C104,C110,C116,C122,C128)","v":0},{"$f":"SUM(D74,D80,D86,D92,D98,D104,D110,D116,D122,D128)","v":0}]
["TOTAL DE GASTOS PREVISTOS",{"$f":"SUM(B134,B73)","v":0},{"$f":"SUM(C134,C73)","v":0},{"$f":"SUM(D134,D73)","v":0}]
[]
["Barcelona, "]
[]
["Sello de la entidad",null,"Firma del Presidente/a o persona autorizada"]
[]
[]
["1.  La quantia de la subvenció atorgada no superarà el 80% de la despesa total del projecte a subvencionar. "]
["2.  L'import màxim de subvenció per a la modalitat \"a\" de l’Intercooperació (Ba) és 35.000€."]
["3.  En el cas que la sol·licitud presentada sobrepassi l’import màxim, es considerarà com a import sol·licitat el màxim de l'establert a la convocatòria."]
["4.  Es limita amb un màxim del 25% l’import de la subvenció per a despeses de personal propi assignat al projecte."]
["5.  Les despeses indirectes imputades al projecte detallades, no podran superar el 10% de l’import de la subvenció."]
["6.  El caràcter subvencionable de la despesa d'amortització estarà subjecte a les condicions següents:"]
["- Que les subvencions no hagin contribuït a la compra dels béns."]
["- Que l'amortització es calculi de conformitat amb les normes de comptabilitat generalment acceptades."]
["- Que el cost es refereixi al període subvencionable."]
["7.  Quan s'hagi de fer despeses de més de 12.000 €, sense IVA, en el cas de prestacions de serveis o lliurament de béns i per aquelles despeses de més de 30.000 €,"]
["      sense IVA, en el cas d'execució d'obres, hauran d'incorporar tres pressupostos sol·licitats i argumentar el motiu de l'adjudicació en el cas de no ser la proposta més avantatjosa econòmicament."]
["8.  En cap cas es consideraran despeses subvencionables:"]
["- Els impostos indirectes quan siguin susceptibles de recuperació o compensació, ni els impostos sobre la renda."]
["- Les despeses d'inversió, incloses les adquisicions de béns mobles."]
["- Les despeses realitzades amb data anterior a l'inici del projecte i data posterior a la finalització del projecte."]
["- Altres despeses que s'indiquin a la convocatòria."]
["9. Per les subvencions atorgades per import igual o superior a 20.000 € és necessari un informe d'auditoria per a la justificació. "]
["10. L'import d'aquest informe es considera despesa subvencionable, amb un límit màxim de 1.500 €."]